fUSD/lending_fUSD_20250503
["ID","MTS","AMOUNT","RATE_DAILY","PERIOD"]
[359705343,1746268730483,-450.0,0.00019742,2]
[359705344,1746268730507,-450.0,0.00019742,2]
[359705345,1746268731031,-450.0,0.00019742,2]
[359705346,1746268731063,-450.0,0.00019742,2]
[359705347,1746268731086,-450.0,0.00019742,2]
[359705348,1746268731108,-450.0,0.00019742,2]
[359705349,1746268731132,-450.0,0.00019742,2]
[359705350,1746268731154,-450.0,0.00019742,2]
[359705351,1746268731178,-500.0,0.00019742,2]
[359705352,1746268731201,-450.0,0.00019742,2]
[359705353,1746268731228,-450.0,0.00019742,2]
[359705354,1746268731250,-450.0,0.00019742,2]
[359705355,1746268731273,-450.0,0.00019742,2]
[359705356,1746268731294,-1010.97,0.00019742,2]
[359705357,1746268731315,-984.07,0.00019742,2]
[359705358,1746268731337,-450.0,0.00019742,2]
[359705359,1746268731358,-284.21,0.00019742,2]
[359705360,1746268731381,-450.0,0.00019742,2]
[359705361,1746268731405,-450.0,0.00019742,2]
[359705362,1746268731428,-425.86520608,0.00019742,2]
[359705363,1746268731452,-450.0,0.00019742,2]
[359705364,1746268731475,-450.0,0.00019742,2]
[359705365,1746268731498,-450.0,0.00019742,2]
[359705366,1746268731519,-545.25,0.00019742,2]
[359705367,1746268731541,-165.72601015,0.00019742,2]
[359705368,1746268731564,-450.0,0.00019742,2]
[359705369,1746268731585,-450.0,0.00019742,2]
[359705370,1746268731606,-541.9,0.00019742,2]
[359705371,1746268731628,-628.18,0.00019742,2]
[359705372,1746268731651,-946.19,0.00019742,2]
[359705373,1746268731674,-450.0,0.00019742,2]
[359705374,1746268731695,-450.0,0.00019742,2]
[359705375,1746268731721,-1142.32,0.00019742,2]
[359705376,1746268731743,-3117.39,0.00019742,2]
[359705377,1746268731765,-471.23,0.00019742,2]
[359705378,1746268731787,-450.0,0.00019742,2]
[359705379,1746268731809,-172.3014815,0.00019742,2]
[359705380,1746268731831,-450.0,0.00019742,2]
[359705381,1746268731852,-450.0,0.00019742,2]
[359705382,1746268731875,-450.0,0.00019742,2]
[359705383,1746268731896,-450.0,0.00019742,2]
[359705384,1746268731918,-316.35,0.00019742,2]
[359705385,1746268731940,-450.0,0.00019742,2]
[359705386,1746268731963,-547.54,0.00019742,2]
[359705387,1746268731984,-654.95,0.00019742,2]
[359705388,1746268732007,-450.0,0.00019742,2]
[359705389,1746268732032,-450.0,0.00019742,2]
[359705390,1746268732056,-450.0,0.00019742,2]
[359705391,1746268732079,-450.0,0.00019742,2]
[359705392,1746268732103,-450.0,0.00019742,2]
[359705393,1746268732125,-450.0,0.00019742,2]
[359705394,1746268732149,-4824.71,0.00019742,2]
[359705395,1746268732171,-472.8832217,0.00019742,2]
[359705396,1746268732193,-479.58872183,0.00019742,2]
[359705397,1746268732215,-450.0,0.00019742,2]
[359705398,1746268732237,-450.0,0.00019742,2]
[359705399,1746268732262,-450.0,0.00019742,2]
[359705400,1746268732284,-465.69445318,0.00019742,2]
[359705401,1746268732307,-450.0,0.00019742,2]
[359705402,1746268732329,-495.23,0.00019742,2]
[359705403,1746268732351,-530.81,0.00019742,2]
[359705404,1746268732373,-450.0,0.00019742,2]
[359705405,1746268732395,-544.12,0.00019742,2]
[359705406,1746268732424,-469.36459748,0.00019742,2]
[359705407,1746268732446,-261.00045563,0.00019743,2]
[359705408,1746268732468,-1462.75,0.00019743,2]
[359705409,1746268732491,-589.0,0.00019743,2]
[359705410,1746268732513,-450.0,0.00019743,2]
[359705411,1746268732535,-450.0,0.00019743,2]
[359705412,1746268732557,-450.0,0.00019743,2]
[359705413,1746268732579,-637.26,0.00019743,2]
[359705414,1746268732600,-450.0,0.00019743,2]
[359705415,1746268732629,-476.35,0.00019743,2]
[359705416,1746268732658,-450.0,0.00019743,2]
[359705417,1746268732680,-1387.31,0.00019743,2]
[359705418,1746268732703,-315.85917334,0.00019743,2]
[359705419,1746268732725,-450.0,0.00019743,2]
[359705420,1746268732748,-282.33963342,0.00019743,2]
[359705421,1746268732770,-450.0,0.00019743,2]
[359705422,1746268732793,-511.14978125,0.00019743,2]
[359705423,1746268732816,-450.0,0.00019743,2]
[359705424,1746268732838,-450.0,0.00019743,2]
[359705425,1746268732861,-450.0,0.00019743,2]
[359705426,1746268732883,-450.0,0.00019743,2]
[359705427,1746268732906,-196.1335328,0.00019743,2]
[359705428,1746268732929,-452.57,0.00019743,2]
[359705429,1746268732951,-450.0,0.00019743,2]
[359705430,1746268732973,-494.85,0.00019743,2]
[359705431,1746268732994,-450.0,0.00019743,2]
[359705432,1746268733016,-450.0,0.00019743,2]
[359705433,1746268733038,-896.26,0.00019743,2]
[359705434,1746268733063,-450.0,0.00019743,2]
[359705435,1746268733086,-450.0,0.00019743,2]
[359705436,1746268733108,-499.65,0.00019743,2]
[359705437,1746268733138,-592.99,0.00019743,2]
[359705438,1746268733160,-503.71,0.00019743,2]
[359705439,1746268733183,-450.0,0.00019743,2]
[359705440,1746268733206,-499.3,0.00019743,2]
[359705441,1746268733229,-1461.43,0.00019743,2]
[359705442,1746268733251,-450.0,0.00019743,2]
[359705443,1746268733274,-450.0,0.00019743,2]
[359705444,1746268733296,-450.0,0.00019743,2]
[359705445,1746268733318,-450.0,0.00019743,2]
[359705446,1746268733340,-522.79,0.00019743,2]
[359705447,1746268733363,-569.82,0.00019743,2]
[359705448,1746268733385,-450.0,0.00019743,2]
[359705449,1746268733407,-450.0,0.00019743,2]
[359705450,1746268733430,-450.0,0.00019743,2]
[359705451,1746268733451,-450.0,0.00019743,2]
[359705452,1746268733473,-450.0,0.00019743,2]
[359705453,1746268733495,-704.33,0.00019743,2]
[359705454,1746268733517,-450.0,0.00019743,2]
[359705455,1746268733539,-450.0,0.00019743,2]
[359705456,1746268733561,-699.77,0.00019743,2]
[359705457,1746268733583,-450.0,0.00019743,2]
[359705458,1746268733605,-450.0,0.00019743,2]
[359705459,1746268733627,-450.0,0.00019743,2]
[359705460,1746268733648,-450.0,0.00019743,2]
[359705461,1746268733670,-450.0,0.00019743,2]
[359705462,1746268733693,-450.0,0.00019743,2]
[359705463,1746268733715,-493.93,0.00019743,2]
[359705464,1746268733737,-450.0,0.00019743,2]
[359705465,1746268733758,-450.0,0.00019743,2]
[359705466,1746268733780,-916.67,0.00019743,2]
[359705467,1746268733801,-460.80254798,0.00019743,2]
[359705468,1746268733822,-450.0,0.00019743,2]
[359705469,1746268733845,-450.0,0.00019743,2]
[359705470,1746268733866,-450.0,0.00019743,2]
[359705471,1746268733889,-730.05,0.00019743,2]
[359705472,1746268733911,-450.0,0.00019743,2]
[359705473,1746268733934,-450.0,0.00019743,2]
[359705474,1746268733956,-450.0,0.00019743,2]
[359705475,1746268733979,-450.0,0.00019743,2]
[359705476,1746268734002,-1154.38,0.00019743,2]
[359705477,1746268734024,-450.0,0.00019743,2]
[359705478,1746268734049,-450.0,0.00019743,2]
[359705479,1746268734072,-450.0,0.00019743,2]
[359705480,1746268734096,-463.03,0.00019743,2]
[359705481,1746268734120,-450.0,0.00019743,2]
[359705482,1746268734365,-472.98,0.00019743,2]
[359705483,1746268734388,-1314.76,0.00019743,2]
[359705484,1746268734413,-569.34,0.00019743,2]
[359705485,1746268734436,-450.26,0.00019743,2]
[359705486,1746268734459,-450.0,0.00019743,2]
[359705487,1746268734482,-450.0,0.00019743,2]
[359705488,1746268734504,-450.0,0.00019743,2]
[359705489,1746268734527,-450.0,0.00019743,2]
[359705490,1746268734550,-560.22,0.00019743,2]
[359705491,1746268734572,-450.0,0.00019743,2]
[359705492,1746268734594,-450.0,0.00019743,2]
[359705493,1746268734615,-702.05,0.00019743,2]
[359705494,1746268734638,-2065.14,0.00019743,2]
[359705495,1746268734659,-450.0,0.00019743,2]
[359705496,1746268734682,-450.0,0.00019743,2]
[359705497,1746268734703,-450.0,0.00019743,2]
[359705498,1746268734724,-450.0,0.00019743,2]
[359705499,1746268734745,-769.02,0.00019743,2]
[359705500,1746268734766,-450.0,0.00019743,2]
[359705501,1746268734788,-450.0,0.00019743,2]
[359705502,1746268734809,-674.72,0.00019743,2]
[359705503,1746268734831,-680.28,0.00019743,2]
[359705504,1746268734853,-1502.42,0.00019743,2]
[359705505,1746268734874,-450.0,0.00019743,2]
[359705506,1746268734895,-450.0,0.00019743,2]
[359705507,1746268734916,-3004.65,0.00019743,2]
[359705508,1746268734938,-804.11,0.00019743,2]
[359705509,1746268734959,-2150.97,0.00019743,2]
[359705510,1746268734981,-450.0,0.00019743,2]
[359705511,1746268735006,-450.0,0.00019743,2]
[359705512,1746268735027,-936.92,0.00019743,2]
[359705513,1746268735052,-450.0,0.00019743,2]
[359705514,1746268735074,-450.0,0.00019743,2]
[359705515,1746268735096,-450.0,0.00019743,2]
[359705516,1746268735117,-450.0,0.00019743,2]
[359705517,1746268735139,-638.82,0.00019743,2]
[359705518,1746268735162,-1506.29,0.00019743,2]
[359705519,1746268735184,-1931.05,0.00019743,2]
[359705520,1746268735205,-450.0,0.00019743,2]
[359705521,1746268735225,-450.0,0.00019743,2]
[359705522,1746268735247,-450.0,0.00019743,2]
[359705523,1746268735269,-450.0,0.00019743,2]
[359705524,1746268735290,-535.35,0.00019743,2]
[359705525,1746268735311,-450.0,0.00019743,2]
[359705526,1746268735332,-450.0,0.00019743,2]
[359705527,1746268735354,-500.0,0.00019743,2]
[359705528,1746268735376,-541.45,0.00019743,2]
[359705529,1746268735399,-450.0,0.00019743,2]
[359705530,1746268735422,-450.0,0.00019743,2]
[359705531,1746268735444,-450.0,0.00019743,2]
[359705532,1746268735467,-664.66,0.00019743,2]
[359705533,1746268735489,-450.0,0.00019743,2]
[359705534,1746268735510,-450.0,0.00019743,2]
[359705535,1746268735532,-450.0,0.00019743,2]
[359705536,1746268735554,-450.0,0.00019743,2]
[359705537,1746268735575,-947.11,0.00019743,2]
[359705538,1746268735597,-450.0,0.00019743,2]
[359705539,1746268735619,-450.0,0.00019743,2]
[359705540,1746268735641,-800.93,0.00019743,2]
[359705541,1746268735662,-490.12,0.00019743,2]
[359705542,1746268735684,-1284.38,0.00019743,2]
[359705543,1746268735705,-500.0,0.00019743,2]
[359705544,1746268735728,-450.0,0.00019743,2]
[359705545,1746268735749,-562.33,0.00019743,2]
[359705546,1746268735770,-450.0,0.00019743,2]
[359705547,1746268735792,-450.0,0.00019743,2]
[359705548,1746268735812,-450.0,0.00019743,2]
[359705549,1746268735834,-450.0,0.00019743,2]
[359705550,1746268735856,-460.92912706,0.00019743,2]
[359705551,1746268735877,-450.0,0.00019743,2]
[359705552,1746268735899,-499.81,0.00019743,2]
[359705553,1746268735923,-489.63,0.00019743,2]
[359705554,1746268735944,-553.87125161,0.00019743,2]
[359705555,1746268735966,-1386.55,0.00019743,2]
[359705556,1746268735987,-999.0,0.00019743,2]
[359705557,1746268736008,-450.0,0.00019743,2]
[359705558,1746268736029,-649.78,0.00019743,2]
[359705559,1746268736052,-450.0,0.00019743,2]
[359705560,1746268736074,-486.74,0.00019743,2]
[359705561,1746268736097,-790.19,0.00019743,2]
[359705562,1746268736121,-450.0,0.00019743,2]
[359705563,1746268736143,-538.0989781,0.00019743,2]
[359705564,1746268736166,-450.0,0.00019743,2]
[359705565,1746268736187,-450.0,0.00019743,2]
[359705566,1746268736207,-450.0,0.00019743,2]
[359705567,1746268736228,-450.0,0.00019743,2]
[359705568,1746268736249,-450.0,0.00019743,2]
[359705569,1746268736270,-450.0,0.00019743,2]
[359705570,1746268736291,-640.64,0.00019743,2]
[359705571,1746268736314,-4261.07,0.00019743,2]
[359705572,1746268736334,-824.7,0.00019743,2]
[359705573,1746268736355,-482.36,0.00019743,2]
[359705574,1746268736376,-450.0,0.00019743,2]
[359705575,1746268736397,-491.81617772,0.00019743,2]
[359705576,1746268736418,-450.0,0.00019743,2]
[359705577,1746268736440,-450.0,0.00019743,2]
[359705578,1746268736461,-460.24697355,0.00019743,2]
[359705579,1746268736522,-450.0,0.00019743,2]
[359705580,1746268736544,-503.6297104,0.00019743,2]
[359705581,1746268736566,-450.0,0.00019743,2]
[359705582,1746268736586,-87710.08,0.00019744,2]
[359705583,1746268736607,-495.87,0.00019744,2]
[359705584,1746268736628,-572.5,0.00019744,2]
[359705585,1746268736650,-450.0,0.00019744,2]
[359705586,1746268736671,-3425.84,0.00019744,2]
[359705587,1746268736692,-590.12,0.00019744,2]
[359705588,1746268736712,-2387.53,0.00019744,2]
[359705589,1746268736733,-650.23,0.00019744,2]
[359705590,1746268736754,-790.78,0.00019744,2]
[359705591,1746268736775,-873.55,0.00019744,2]
[359705592,1746268736796,-4261.34,0.00019744,2]
[359705593,1746268736818,-4535.11,0.00019744,2]
[359705594,1746268736839,-3809.16,0.00019744,2]
[359705595,1746268736860,-544.1,0.00019744,2]
[359705596,1746268736881,-4101.67,0.00019744,2]
[359705597,1746268736903,-69529.29,0.00019744,2]
[359705598,1746268736925,-3976.41,0.00019744,2]
[359705599,1746268736947,-20093.08,0.00019744,2]
[359705600,1746268736970,-1420.67,0.00019744,2]
[359705601,1746268736992,-13002.18,0.00019744,2]
[359705602,1746268737014,-803.49012857,0.00019758,2]
[359705603,1746268737035,-186.165554,0.00019772,2]
[359705604,1746268737059,-500.0,0.00019773,2]
[359705605,1746268737080,-500.0,0.00019773,2]
[359705606,1746268737103,-803.49012857,0.00019776,2]
[359705607,1746268737125,-186.165554,0.00019792,2]
[359705608,1746268737148,-803.49012857,0.00019793,2]
[359705609,1746268737170,-406.7708979,0.00019799,2]
[359705610,1746268737191,-803.49012857,0.00019811,2]
[359705611,1746268737213,-803.49012857,0.00019829,2]
[359705612,1746268737234,-2000.0,0.0001984,2]
[359705613,1746268737256,-803.49012857,0.00019847,2]
[359705614,1746268737278,-803.49012857,0.00019864,2]
[359705615,1746268737300,-803.49012857,0.00019882,2]
[359705616,1746268737320,-2731.7568,0.000199,2]
[359705617,1746268737341,-803.49012857,0.000199,2]
[359705618,1746268737362,-15361.11777213,0.000199,2]
[359705619,1746268737385,-206.00517061,0.000199,2]
[359705620,1746268737406,-975.44712482,0.000199,2]
[359705621,1746268737428,-2401.08,0.000199,2]
[359705622,1746268737449,-219.777,0.000199,2]
[359705623,1746268737469,-3370.90632044,0.000199,2]
[359705624,1746268737490,-500.0,0.00019918,2]
[359705625,1746268737511,-500.0,0.00019973,2]
[359705626,1746268737532,-500.0,0.00019973,2]
[359705627,1746268737553,-500.0,0.00019973,2]
[359705628,1746268737575,-500.0,0.00019973,2]
[359705629,1746268737595,-500.0,0.00019973,2]
[359705630,1746268737616,-504.1525849,0.00019973,2]
[359705631,1746268737636,-500.8951883,0.00019973,2]
[359705632,1746268737657,-500.0,0.00019973,2]
[359705633,1746268737677,-500.0,0.00019973,2]
[359705634,1746268737698,-500.0,0.00019973,2]
[359705635,1746268737719,-207.4,0.00019974,2]
[359705636,1746268737741,-500.0,0.00019979,2]
[359705637,1746268737762,-191.0448902,0.00019979,2]
[359705638,1746268737783,-196.96975911,0.00019979,2]
[359705639,1746268737806,-500.0,0.00019979,2]
[359705640,1746268737827,-199.93193991,0.00019979,2]
[359705641,1746268737849,-500.0,0.00019979,2]
[359705642,1746268737872,-500.0,0.00019979,2]
[359705643,1746268737895,-302.69495338,0.00019979,2]
[359705644,1746268737918,-500.0,0.00019979,2]
[359705645,1746268737940,-500.0,0.00019979,2]
[359705646,1746268737961,-500.0,0.00019979,2]
[359705647,1746268737981,-420321.32739719,0.0001998,2]
[359705648,1746268738002,-450.0,0.00019985,2]
[359705649,1746268738024,-500.0,0.00019985,2]
[359705650,1746268738060,-450.0,0.00019985,2]
[359705651,1746268738083,-500.0,0.00019985,2]
[359705652,1746268738105,-500.0,0.00019985,2]
[359705653,1746268738127,-500.0,0.00019985,2]
[359705654,1746268738148,-500.0,0.00019985,2]
[359705655,1746268738170,-500.0,0.00019985,2]
[359705656,1746268738191,-500.0,0.00019985,2]
[359705657,1746268738213,-107284.7013561,0.00019986,2]
[359705658,1746268738234,-3954.7683452,0.00019986,2]
[359705659,1746268738255,-111440.9407091,0.00019986,2]
[359705660,1746268738276,-10086.9684811,0.00019986,2]
[359705661,1746268738297,-311210.1263134,0.00019986,2]
[359705662,1746268738319,-27565.022863,0.00019986,2]
[359705663,1746268738340,-151.0,0.00019988,2]
[359705664,1746268738361,-668.65185757,0.00019988,2]
[359705665,1746268738383,-500.0,0.00019998,2]
[359705666,1746268738405,-500.0,0.00019998,2]
[359705667,1746268738426,-500.0,0.00019998,2]
[359705668,1746268738448,-500.0,0.00019999,2]
[359705669,1746268738469,-300.0,0.00019999,2]
[359705670,1746268738490,-370.243055,0.00019999,2]
[359705671,1746268738514,-500.0,0.00019999,2]
[359705672,1746268738538,-500.0,0.00019999,2]
[359705673,1746268738560,-500.0,0.00019999,2]
[359705674,1746268738582,-500.0,0.00019999,2]
[359705675,1746268738604,-500.0,0.00019999,2]
[359705676,1746268738626,-500.0,0.00019999,2]
[359705677,1746268738649,-500.0,0.00019999,2]
[359705678,1746268738672,-500.0,0.00019999,2]
[359705679,1746268738694,-500.0,0.00019999,2]
[359705680,1746268738716,-500.0,0.00019999,2]
[359705681,1746268738739,-500.0,0.00019999,2]
[359705682,1746268738761,-248.24,0.00019999,2]
[359705683,1746268738782,-204.73859582,0.00019999,2]
[359705684,1746268738803,-500.0,0.00019999,2]
[359705685,1746268738823,-500.0,0.00019999,2]
[359705686,1746268738846,-500.0,0.00019999,2]
[359705687,1746268738867,-500.0,0.00019999,2]
[359705688,1746268738889,-192.3518044,0.00019999,2]
[359705689,1746268738911,-500.0,0.00019999,2]
[359705690,1746268738933,-500.0,0.00019999,2]
[359705691,1746268738956,-500.0,0.00019999,2]
[359705692,1746268738979,-500.0,0.00019999,2]
[359705693,1746268739003,-587.97322185,0.00019999,2]
[359705694,1746268739023,-1235.0,0.0002,2]
[359705695,1746268739047,-413.58811682,0.0002,2]
[359705696,1746268739071,-673689.82073579,0.0002,2]
[359705697,1746268739093,-6904.20957737,0.0002,4]
[359705698,1746268739116,-1838014.84414669,0.0002,2]
[359705699,1746268813042,250.0,0.00017,2]
[359705700,1746268814105,300.0,0.00019,2]
[359705701,1746268841148,381.54,0.00017011,2]
[359705702,1746268841620,381.54,0.00019275,2]
[359705703,1746268879618,-172.868004,0.00019572,2]
[359705704,1746268879644,-164.912197,0.00019572,2]
[359705705,1746268879669,-624.5096,0.00019643,2]
[359705706,1746268879695,-447.8394,0.00019643,2]
[359705707,1746268879720,-1000.0,0.00019643,2]
[359705708,1746268879745,-523.5476,0.00019643,2]
[359705709,1746268879771,-767.14521035,0.00019643,2]
[359705710,1746268879796,-2500.0,0.00019643,2]
[359705711,1746268879822,-250.0,0.00019692,2]
[359705712,1746268879848,-200.0,0.00019692,2]
[359705713,1746268879875,-1200.0,0.00019741,2]
[359705714,1746268879904,-300.0,0.00019741,2]
[359705715,1746268879930,-450.0,0.00019742,2]
[359705716,1746268879956,-450.0,0.00019742,2]
[359705717,1746268879982,-505.03,0.00019742,2]
[359705718,1746268880008,-450.0,0.00019742,2]
[359705719,1746268880034,-450.0,0.00019742,2]
[359705720,1746268880060,-450.0,0.00019742,2]
[359705721,1746268880088,-450.0,0.00019742,2]
[359705722,1746268880114,-463.64256964,0.00019742,2]
[359705723,1746268880140,-457.88,0.00019742,2]
[359705724,1746268880171,-450.0,0.00019742,2]
[359705725,1746268880197,-1439.82,0.00019742,2]
[359705726,1746268880224,-450.0,0.00019742,2]
[359705727,1746268880251,-548.65,0.00019742,2]
[359705728,1746268880277,-450.0,0.00019742,2]
[359705729,1746268880303,-450.0,0.00019742,2]
[359705730,1746268880330,-450.0,0.00019742,2]
[359705731,1746268880357,-450.0,0.00019742,2]
[359705732,1746268880384,-600.86,0.00019742,2]
[359705733,1746268880411,-3553.13,0.00019742,2]
[359705734,1746268880438,-450.0,0.00019742,2]
[359705735,1746268880464,-450.0,0.00019742,2]
[359705736,1746268880492,-450.0,0.00019742,2]
[359705737,1746268880519,-1481.21,0.00019742,2]
[359705738,1746268880545,-473.8258779,0.00019742,2]
[359705739,1746268880572,-607.86,0.00019742,2]
[359705740,1746268880599,-450.0,0.00019742,2]
[359705741,1746268880626,-1053.96,0.00019742,2]
[359705742,1746268880658,-500.0,0.00019742,2]
[359705743,1746268880686,-450.0,0.00019742,2]
[359705744,1746268880714,-556.05,0.00019742,2]
[359705745,1746268880741,-450.0,0.00019742,2]
[359705746,1746268880768,-2348.63,0.00019742,2]
[359705747,1746268880796,-450.0,0.00019742,2]
[359705748,1746268880823,-450.0,0.00019742,2]
[359705749,1746268880852,-507.26,0.00019742,2]
[359705750,1746268880879,-450.0,0.00019742,2]
[359705751,1746268880908,-450.0,0.00019742,2]
[359705752,1746268880937,-674.81,0.00019742,2]
[359705753,1746268880966,-450.0,0.00019742,2]
[359705754,1746268880993,-450.0,0.00019742,2]
[359705755,1746268881021,-450.0,0.00019742,2]
[359705756,1746268881049,-450.0,0.00019742,2]
[359705757,1746268881076,-660.26,0.00019742,2]
[359705758,1746268881103,-452.82,0.00019742,2]
[359705759,1746268881131,-823.08,0.00019742,2]
[359705760,1746268881157,-450.0,0.00019742,2]
[359705761,1746268881186,-450.0,0.00019742,2]
[359705762,1746268881213,-1035.51,0.00019742,2]
[359705763,1746268881240,-905.36,0.00019742,2]
[359705764,1746268881268,-450.0,0.00019742,2]
[359705765,1746268881294,-450.0,0.00019742,2]
[359705766,1746268881322,-450.0,0.00019742,2]
[359705767,1746268881349,-450.0,0.00019742,2]
[359705768,1746268881376,-450.0,0.00019742,2]
[359705769,1746268881403,-450.0,0.00019742,2]
[359705770,1746268881431,-4403.71,0.00019742,2]
[359705771,1746268881458,-450.0,0.00019742,2]
[359705772,1746268881484,-275.91079116,0.00019742,2]
[359705773,1746268881511,-450.0,0.00019742,2]
[359705774,1746268881537,-603.06,0.00019742,2]
[359705775,1746268881564,-450.0,0.00019742,2]
[359705776,1746268881591,-450.0,0.00019742,2]
[359705777,1746268881618,-450.0,0.00019742,2]
[359705778,1746268881644,-450.0,0.00019742,2]
[359705779,1746268881671,-450.0,0.00019743,2]
[359705780,1746268881698,-450.0,0.00019743,2]
[359705781,1746268881725,-450.0,0.00019743,2]
[359705782,1746268881752,-450.0,0.00019743,2]
[359705783,1746268881778,-450.0,0.00019743,2]
[359705784,1746268881805,-450.0,0.00019743,2]
[359705785,1746268881832,-450.0,0.00019743,2]
[359705786,1746268881859,-450.0,0.00019743,2]
[359705787,1746268881886,-450.0,0.00019743,2]
[359705788,1746268881912,-450.0,0.00019743,2]
[359705789,1746268881941,-1039.2,0.00019743,2]
[359705790,1746268881967,-450.0,0.00019743,2]
[359705791,1746268881994,-473.37015512,0.00019743,2]
[359705792,1746268882020,-500.0,0.00019743,2]
[359705793,1746268882046,-190.19761816,0.00019743,2]
[359705794,1746268882078,-450.0,0.00019743,2]
[359705795,1746268882104,-450.0,0.00019743,2]
[359705796,1746268882130,-450.0,0.00019743,2]
[359705797,1746268882156,-450.0,0.00019743,2]
[359705798,1746268882184,-496.15403073,0.00019743,2]
[359705799,1746268882214,-450.0,0.00019743,2]
[359705800,1746268882241,-450.0,0.00019743,2]
[359705801,1746268882268,-450.0,0.00019743,2]
[359705802,1746268882295,-450.0,0.00019743,2]
[359705803,1746268882323,-450.0,0.00019743,2]
[359705804,1746268882350,-450.0,0.00019743,2]
[359705805,1746268882378,-450.0,0.00019743,2]
[359705806,1746268882406,-603.59,0.00019743,2]
[359705807,1746268882433,-662.49,0.00019743,2]
[359705808,1746268882460,-450.0,0.00019743,2]
[359705809,1746268882486,-450.0,0.00019743,2]
[359705810,1746268882512,-590.83,0.00019743,2]
[359705811,1746268882539,-674.77,0.00019743,2]
[359705812,1746268882566,-450.0,0.00019743,2]
[359705813,1746268882593,-450.0,0.00019743,2]
[359705814,1746268882619,-450.0,0.00019743,2]
[359705815,1746268882647,-1075.96,0.00019743,2]
[359705816,1746268882674,-517.44,0.00019743,2]
[359705817,1746268882700,-450.0,0.00019743,2]
[359705818,1746268882727,-450.0,0.00019743,2]
[359705819,1746268882754,-1562.44,0.00019743,2]
[359705820,1746268882780,-450.0,0.00019743,2]
[359705821,1746268882807,-450.0,0.00019743,2]
[359705822,1746268882834,-450.0,0.00019743,2]
[359705823,1746268882859,-450.0,0.00019743,2]
[359705824,1746268883088,-450.0,0.00019743,2]
[359705825,1746268883116,-450.0,0.00019743,2]
[359705826,1746268883144,-450.0,0.00019743,2]
[359705827,1746268883173,-569.26,0.00019743,2]
[359705828,1746268883199,-450.0,0.00019743,2]
[359705829,1746268883226,-450.0,0.00019743,2]
[359705830,1746268883254,-450.0,0.00019743,2]
[359705831,1746268883282,-450.0,0.00019743,2]
[359705832,1746268883310,-450.0,0.00019743,2]
[359705833,1746268883337,-450.0,0.00019743,2]
[359705834,1746268883364,-450.0,0.00019743,2]
[359705835,1746268883391,-450.0,0.00019743,2]
[359705836,1746268883419,-450.0,0.00019743,2]
[359705837,1746268883445,-500.07331419,0.00019743,2]
[359705838,1746268883472,-450.0,0.00019743,2]
[359705839,1746268883500,-450.0,0.00019743,2]
[359705840,1746268883529,-450.0,0.00019743,2]
[359705841,1746268883559,-450.0,0.00019743,2]
[359705842,1746268883587,-655.29,0.00019743,2]